[Event "Early Titled Tuesday Blitz | February 8 2022"]
[White "Zhigalko, Sergei"]
[Black "Maevsky, Nikolay"]
[WhiteFideId "13502956"]
[BlackFideId "4198220"]
[WhiteElo "2662"]
[BlackElo "2104"]
[Result "0-1"]
[Round "05"]
[TimeControl "180+1"]
[Date "2022.02.08"]
[WhiteClock "0:00:01"]
[BlackClock "0:00:05"]

1. e4 {[%clk 0:03:00]}  c6 {[%clk 0:03:00]} 2. d4 {[%clk 0:03:01]}  d5 {[%clk 0:03:00]} 3. e5 {[%clk 0:03:01]}  Bf5 {[%clk 0:03:00]} 4. Nf3 {[%clk 0:03:02]}  e6 {[%clk 0:03:00]} 5. Be2 {[%clk 0:03:03]}  Nd7 {[%clk 0:03:00]} 6. O-O {[%clk 0:03:03]}  Bg6 {[%clk 0:03:00]} 7. Nbd2 {[%clk 0:03:04]}  Nh6 {[%clk 0:03:00]} 8. a4 {[%clk 0:03:04]}  Nf5 {[%clk 0:02:59]} 9. a5 {[%clk 0:03:04]}  a6 {[%clk 0:02:59]} 10. c4 {[%clk 0:03:04]}  Be7 {[%clk 0:02:52]} 11. Qb3 {[%clk 0:03:03]}  Rb8 {[%clk 0:02:52]} 12. Re1 {[%clk 0:03:01]}  O-O {[%clk 0:02:48]} 13. h3 {[%clk 0:02:57]}  Nh4 {[%clk 0:02:44]} 14. Nxh4 {[%clk 0:02:54]}  Bxh4 {[%clk 0:02:43]} 15. Nf3 {[%clk 0:02:54]}  Be7 {[%clk 0:02:43]} 16. Bd2 {[%clk 0:02:51]}  dxc4 {[%clk 0:02:37]} 17. Bxc4 {[%clk 0:02:51]}  Re8 {[%clk 0:02:35]} 18. Bc3 {[%clk 0:02:37]}  Nf8 {[%clk 0:02:23]} 19. Rad1 {[%clk 0:02:18]}  Qc7 {[%clk 0:02:23]} 20. Nd2 {[%clk 0:02:13]}  Rbd8 {[%clk 0:02:17]} 21. Ne4 {[%clk 0:02:12]}  Nd7 {[%clk 0:01:46]} 22. Ng3 {[%clk 0:02:06]}  b5 {[%clk 0:01:32]} 23. axb6 {[%clk 0:02:03]}  Nxb6 {[%clk 0:01:32]} 24. Bxa6 {[%clk 0:01:53]}  Nd5 {[%clk 0:01:30]} 25. Bd3 {[%clk 0:01:46]}  Rb8 {[%clk 0:01:27]} 26. Qc4 {[%clk 0:01:39]}  c5 {[%clk 0:01:21]} 27. Be4 {[%clk 0:01:29]}  Nb6 {[%clk 0:01:09]} 28. Qa6 {[%clk 0:01:04]}  cxd4 {[%clk 0:00:58]} 29. Bxd4 {[%clk 0:00:59]}  Qc4 {[%clk 0:00:52]} 30. Qa7 {[%clk 0:00:43]}  Nd5 {[%clk 0:00:43]} 31. Rc1 {[%clk 0:00:23]}  Qb3 {[%clk 0:00:43]} 32. Bxg6 {[%clk 0:00:11]}  hxg6 {[%clk 0:00:43]} 33. Ne4 {[%clk 0:00:11]}  Ra8 {[%clk 0:00:32]} 34. Qd7 {[%clk 0:00:11]}  Red8 {[%clk 0:00:26]} 35. Qc6 {[%clk 0:00:11]}  Nf4 {[%clk 0:00:21]} 36. Bc5 {[%clk 0:00:09]}  Rdc8 {[%clk 0:00:17]} 37. Qd7 {[%clk 0:00:08]}  Bxc5 {[%clk 0:00:15]} 38. Rxc5 {[%clk 0:00:05]}  Rxc5 {[%clk 0:00:12]} 39. Nxc5 {[%clk 0:00:06]}  Qxb2 {[%clk 0:00:08]} 40. Qd1 {[%clk 0:00:02]}  Ra2 {[%clk 0:00:05]} 41. Rf1 {[%clk 0:00:02]}  Nd5 {[%clk 0:00:05]} 42. Nd3 {[%clk 0:00:02]}  Qd4 {[%clk 0:00:05]} 43. Re1 {[%clk 0:00:01]}  Ra3 {[%clk 0:00:05]} 0-1


[Site "https://www.chess.com"]

[Event "Early Titled Tuesday Blitz | February 8 2022"]
[White "parintele_chess"]
[Black "Manukian, Artak"]
[BlackFideId "13301373"]
[WhiteElo "2233"]
[BlackElo "2416"]
[Result "0-1"]
[Round "05"]
[TimeControl "180+1"]
[Date "2022.02.08"]
[WhiteClock "0:00:34"]
[BlackClock "0:01:09"]

1. d4 {[%clk 0:02:59]}  Nf6 {[%clk 0:03:00]} 2. Nc3 {[%clk 0:02:59]}  d5 {[%clk 0:02:59]} 3. Bf4 {[%clk 0:02:59]}  a6 {[%clk 0:02:55]} 4. e3 {[%clk 0:02:57]}  b5 {[%clk 0:02:55]} 5. a3 {[%clk 0:02:57]}  Bg4 {[%clk 0:02:53]} 6. f3 {[%clk 0:02:56]}  Bf5 {[%clk 0:02:53]} 7. g4 {[%clk 0:02:55]}  Bg6 {[%clk 0:02:53]} 8. h4 {[%clk 0:02:56]}  h5 {[%clk 0:02:52]} 9. g5 {[%clk 0:02:55]}  Nh7 {[%clk 0:02:52]} 10. Bd3 {[%clk 0:02:55]}  Bxd3 {[%clk 0:02:52]} 11. Qxd3 {[%clk 0:02:55]}  g6 {[%clk 0:02:52]} 12. Nge2 {[%clk 0:02:53]}  Bg7 {[%clk 0:02:48]} 13. e4 {[%clk 0:02:54]}  c6 {[%clk 0:02:45]} 14. Be5 {[%clk 0:02:38]}  O-O {[%clk 0:02:43]} 15. Bxg7 {[%clk 0:02:37]}  Kxg7 {[%clk 0:02:44]} 16. f4 {[%clk 0:02:29]}  e6 {[%clk 0:02:41]} 17. f5 {[%clk 0:02:26]}  Nd7 {[%clk 0:02:37]} 18. fxe6 {[%clk 0:01:57]}  fxe6 {[%clk 0:02:36]} 19. exd5 {[%clk 0:01:58]}  exd5 {[%clk 0:02:34]} 20. O-O-O {[%clk 0:01:56]}  Qe7 {[%clk 0:02:32]} 21. Rdf1 {[%clk 0:01:51]}  Rae8 {[%clk 0:02:32]} 22. Kb1 {[%clk 0:01:45]}  Qe3 {[%clk 0:02:26]} 23. Nf4 {[%clk 0:01:30]}  Rxf4 {[%clk 0:02:18]} 24. Qxe3 {[%clk 0:01:26]}  Rxf1+ {[%clk 0:02:18]} 25. Rxf1 {[%clk 0:01:24]}  Rxe3 {[%clk 0:02:18]} 26. Kc1 {[%clk 0:01:13]}  Nhf8 {[%clk 0:02:15]} 27. Kd2 {[%clk 0:01:13]}  Re7 {[%clk 0:02:10]} 28. Na2 {[%clk 0:01:11]}  a5 {[%clk 0:02:09]} 29. Nc1 {[%clk 0:01:11]}  Ne6 {[%clk 0:02:07]} 30. c3 {[%clk 0:01:10]}  Rf7 {[%clk 0:01:56]} 31. Re1 {[%clk 0:01:11]}  Nf4 {[%clk 0:01:56]} 32. Re8 {[%clk 0:01:09]}  Ng2 {[%clk 0:01:50]} 33. Nd3 {[%clk 0:01:08]}  Nxh4 {[%clk 0:01:50]} 34. Rc8 {[%clk 0:01:07]}  Nf3+ {[%clk 0:01:46]} 35. Kc2 {[%clk 0:01:00]}  h4 {[%clk 0:01:46]} 36. Rxc6 {[%clk 0:01:01]}  h3 {[%clk 0:01:44]} 37. Nf2 {[%clk 0:01:01]}  h2 {[%clk 0:01:38]} 38. Rd6 {[%clk 0:00:57]}  Nxg5 {[%clk 0:01:36]} 39. Nh1 {[%clk 0:00:57]}  Nf6 {[%clk 0:01:30]} 40. b4 {[%clk 0:00:53]}  axb4 {[%clk 0:01:30]} 41. cxb4 {[%clk 0:00:54]}  Nge4 {[%clk 0:01:29]} 42. Rd8 {[%clk 0:00:51]}  Ng4 {[%clk 0:01:28]} 43. a4 {[%clk 0:00:48]}  bxa4 {[%clk 0:01:26]} 44. b5 {[%clk 0:00:49]}  Rf1 {[%clk 0:01:26]} 45. b6 {[%clk 0:00:47]}  Rxh1 {[%clk 0:01:22]} 46. b7 {[%clk 0:00:48]}  Rb1 {[%clk 0:01:22]} 47. Rd7+ {[%clk 0:00:37]}  Kf6 {[%clk 0:01:16]} 48. Kxb1 {[%clk 0:00:34]}  h1=Q+ {[%clk 0:01:15]} 49. Ka2 {[%clk 0:00:33]}  Nc3+ {[%clk 0:01:13]} 50. Ka3 {[%clk 0:00:34]}  Qa1+ {[%clk 0:01:11]} 51. Kb4 {[%clk 0:00:35]}  Qb2+ {[%clk 0:01:11]} 52. Kc5 {[%clk 0:00:33]}  Qb5+ {[%clk 0:01:08]} 53. Kd6 {[%clk 0:00:34]}  Qb6# {[%clk 0:01:09]} 0-1


[Site "https://www.chess.com"]

[Event "Early Titled Tuesday Blitz | February 8 2022"]
[White "Alekseev, Evgeny"]
[Black "Gaehwiler, Gabriel"]
[WhiteFideId "4138147"]
[BlackFideId "1314530"]
[WhiteElo "2589"]
[BlackElo "2383"]
[Result "1-0"]
[Round "06"]
[TimeControl "180+1"]
[Date "2022.02.08"]
[WhiteClock "0:00:11"]
[BlackClock "0:00:02"]

1. e4 {[%clk 0:02:54]}  e5 {[%clk 0:02:57]} 2. Nf3 {[%clk 0:02:53]}  Nf6 {[%clk 0:02:57]} 3. Nxe5 {[%clk 0:02:51]}  d6 {[%clk 0:02:57]} 4. Nf3 {[%clk 0:02:52]}  Nxe4 {[%clk 0:02:57]} 5. d4 {[%clk 0:02:52]}  d5 {[%clk 0:02:52]} 6. Bd3 {[%clk 0:02:53]}  Be7 {[%clk 0:02:52]} 7. O-O {[%clk 0:02:52]}  Nc6 {[%clk 0:02:52]} 8. Nc3 {[%clk 0:02:38]}  f5 {[%clk 0:02:42]} 9. Ne2 {[%clk 0:02:24]}  g5 {[%clk 0:02:31]} 10. c4 {[%clk 0:02:18]}  g4 {[%clk 0:02:25]} 11. Ne5 {[%clk 0:02:17]}  Nxe5 {[%clk 0:01:44]} 12. dxe5 {[%clk 0:02:17]}  dxc4 {[%clk 0:01:45]} 13. Qa4+ {[%clk 0:01:41]}  Qd7 {[%clk 0:01:02]} 14. Qxc4 {[%clk 0:01:40]}  b5 {[%clk 0:01:02]} 15. Qxb5 {[%clk 0:01:05]}  Nc5 {[%clk 0:01:02]} 16. e6 {[%clk 0:00:50]}  Qxb5 {[%clk 0:00:53]} 17. Bxb5+ {[%clk 0:00:50]}  Kf8 {[%clk 0:00:54]} 18. Nd4 {[%clk 0:00:50]}  Bxe6 {[%clk 0:00:46]} 19. Nxe6+ {[%clk 0:00:38]}  Nxe6 {[%clk 0:00:45]} 20. Re1 {[%clk 0:00:39]}  Nd4 {[%clk 0:00:43]} 21. Bh6+ {[%clk 0:00:37]}  Kf7 {[%clk 0:00:39]} 22. Bc4+ {[%clk 0:00:37]}  Kg6 {[%clk 0:00:39]} 23. Rxe7 {[%clk 0:00:33]}  Kxh6 {[%clk 0:00:39]} 24. Rxc7 {[%clk 0:00:31]}  Rhc8 {[%clk 0:00:38]} 25. Rxc8 {[%clk 0:00:31]}  Rxc8 {[%clk 0:00:39]} 26. b3 {[%clk 0:00:31]}  Re8 {[%clk 0:00:31]} 27. Kf1 {[%clk 0:00:30]}  f4 {[%clk 0:00:29]} 28. Rd1 {[%clk 0:00:29]}  Nc2 {[%clk 0:00:28]} 29. Rc1 {[%clk 0:00:21]}  Nd4 {[%clk 0:00:26]} 30. Re1 {[%clk 0:00:21]}  Rxe1+ {[%clk 0:00:06]} 31. Kxe1 {[%clk 0:00:20]}  f3 {[%clk 0:00:07]} 32. g3 {[%clk 0:00:20]}  Kg5 {[%clk 0:00:07]} 33. Kd2 {[%clk 0:00:20]}  h5 {[%clk 0:00:07]} 34. b4 {[%clk 0:00:19]}  h4 {[%clk 0:00:07]} 35. a4 {[%clk 0:00:18]}  hxg3 {[%clk 0:00:04]} 36. hxg3 {[%clk 0:00:18]}  Kf6 {[%clk 0:00:03]} 37. b5 {[%clk 0:00:14]}  Ke5 {[%clk 0:00:04]} 38. a5 {[%clk 0:00:14]}  Kd6 {[%clk 0:00:03]} 39. b6 {[%clk 0:00:10]}  axb6 {[%clk 0:00:02]} 40. axb6 {[%clk 0:00:11]} 1-0


[Site "https://www.chess.com"]

[Event "Early Titled Tuesday Blitz | February 8 2022"]
[White "Al-Tarboush, Ward"]
[Black "Sliwicki, Damian"]
[WhiteFideId "7601450"]
[BlackFideId "1127128"]
[WhiteElo "2276"]
[BlackElo "2084"]
[Result "1-0"]
[Round "06"]
[TimeControl "180+1"]
[Date "2022.02.08"]
[WhiteClock "0:02:49"]
[BlackClock "0:02:58"]

1. e4 {[%clk 0:02:52]}  c5 {[%clk 0:02:58]} 2. Nf3 {[%clk 0:02:53]}  g6 {[%clk 0:02:58]} 3. d4 {[%clk 0:02:54]}  cxd4 {[%clk 0:02:59]} 4. Qxd4 {[%clk 0:02:53]}  Nf6 {[%clk 0:02:59]} 5. e5 {[%clk 0:02:53]}  Nc6 {[%clk 0:02:59]} 6. Qa4 {[%clk 0:02:53]}  Nd5 {[%clk 0:02:59]} 7. Qe4 {[%clk 0:02:54]}  Nc7 {[%clk 0:02:58]} 8. Nc3 {[%clk 0:02:53]}  Bg7 {[%clk 0:02:57]} 9. Bf4 {[%clk 0:02:53]}  O-O {[%clk 0:02:58]} 10. h4 {[%clk 0:02:50]}  d5 {[%clk 0:02:57]} 11. exd6 {[%clk 0:02:50]}  exd6 {[%clk 0:02:58]} 12. O-O-O {[%clk 0:02:49]} 1-0


[Site "https://www.chess.com"]

[Event "Early Titled Tuesday Blitz | February 8 2022"]
[White "Alves Campelo, Danilo Cesar De L"]
[Black "Novikova, Galina"]
[WhiteFideId "2123657"]
[BlackFideId "4157095"]
[WhiteElo "1994"]
[BlackElo "1863"]
[Result "1-0"]
[Round "06"]
[TimeControl "180+1"]
[Date "2022.02.08"]
[WhiteClock "0:00:40"]
[BlackClock "0:01:38"]

1. e4 {[%clk 0:03:00]}  e6 {[%clk 0:02:59]} 2. d4 {[%clk 0:02:59]}  d5 {[%clk 0:03:00]} 3. Nd2 {[%clk 0:02:59]}  Nc6 {[%clk 0:03:00]} 4. c3 {[%clk 0:02:58]}  e5 {[%clk 0:02:59]} 5. exd5 {[%clk 0:02:47]}  Qxd5 {[%clk 0:03:00]} 6. dxe5 {[%clk 0:02:42]}  Nxe5 {[%clk 0:02:58]} 7. Ngf3 {[%clk 0:02:38]}  Nd3+ {[%clk 0:02:56]} 8. Bxd3 {[%clk 0:02:37]}  Qxd3 {[%clk 0:02:57]} 9. Ne5 {[%clk 0:02:15]}  Qd5 {[%clk 0:02:43]} 10. Ndf3 {[%clk 0:01:49]}  Qxd1+ {[%clk 0:02:42]} 11. Kxd1 {[%clk 0:01:50]}  Bf5 {[%clk 0:02:35]} 12. Nd4 {[%clk 0:01:37]}  O-O-O {[%clk 0:02:36]} 13. Nxf7 {[%clk 0:01:32]}  Rd7 {[%clk 0:02:24]} 14. Nxh8 {[%clk 0:01:29]}  c5 {[%clk 0:02:24]} 15. Be3 {[%clk 0:01:27]}  cxd4 {[%clk 0:02:24]} 16. Bxd4 {[%clk 0:01:28]}  Nf6 {[%clk 0:02:18]} 17. f3 {[%clk 0:01:21]}  Bc5 {[%clk 0:02:16]} 18. g4 {[%clk 0:01:16]}  Be6 {[%clk 0:02:14]} 19. Re1 {[%clk 0:01:10]}  Bxd4 {[%clk 0:02:05]} 20. cxd4 {[%clk 0:01:11]}  Rxd4+ {[%clk 0:02:05]} 21. Kc2 {[%clk 0:01:10]}  Bd5 {[%clk 0:02:02]} 22. Rad1 {[%clk 0:00:58]}  Rc4+ {[%clk 0:02:02]} 23. Kb1 {[%clk 0:00:57]}  Bxf3 {[%clk 0:02:00]} 24. Rc1 {[%clk 0:00:57]}  Rxc1+ {[%clk 0:01:53]} 25. Rxc1+ {[%clk 0:00:57]}  Kd7 {[%clk 0:01:54]} 26. Nf7 {[%clk 0:00:57]}  Ke6 {[%clk 0:01:52]} 27. Ng5+ {[%clk 0:00:57]}  Ke5 {[%clk 0:01:52]} 28. Nxf3+ {[%clk 0:00:57]}  Kf4 {[%clk 0:01:53]} 29. Nd4 {[%clk 0:00:47]}  Nxg4 {[%clk 0:01:52]} 30. h3 {[%clk 0:00:46]}  Nf2 {[%clk 0:01:51]} 31. Ne6+ {[%clk 0:00:45]}  Ke3 {[%clk 0:01:50]} 32. Nxg7 {[%clk 0:00:45]}  Nd3 {[%clk 0:01:49]} 33. Rc3 {[%clk 0:00:45]}  Kd4 {[%clk 0:01:48]} 34. Rxd3+ {[%clk 0:00:44]}  Kxd3 {[%clk 0:01:49]} 35. Kc1 {[%clk 0:00:45]}  Ke3 {[%clk 0:01:49]} 36. Nh5 {[%clk 0:00:45]}  Kf3 {[%clk 0:01:46]} 37. Nf6 {[%clk 0:00:45]}  h6 {[%clk 0:01:46]} 38. h4 {[%clk 0:00:43]}  Kf4 {[%clk 0:01:44]} 39. Ng8 {[%clk 0:00:42]}  h5 {[%clk 0:01:42]} 40. Nf6 {[%clk 0:00:41]}  b5 {[%clk 0:01:39]} 41. Kc2 {[%clk 0:00:41]}  Ke5 {[%clk 0:01:39]} 42. Nxh5 {[%clk 0:00:40]}  a5 {[%clk 0:01:39]} 43. Kd3 {[%clk 0:00:40]}  Kf5 {[%clk 0:01:38]} 44. Ng3+ {[%clk 0:00:39]}  Kg4 {[%clk 0:01:38]} 45. h5 {[%clk 0:00:39]}  Kg5 {[%clk 0:01:38]} 46. Kd4 {[%clk 0:00:40]} 1-0


[Site "https://www.chess.com"]

[Event "Early Titled Tuesday Blitz | February 8 2022"]
[White "Araujo Sanchez, Josue"]
[Black "Matlakov, Maxim"]
[WhiteFideId "6416896"]
[BlackFideId "4168003"]
[WhiteElo "2605"]
[BlackElo "2855"]
[Result "0-1"]
[Round "06"]
[TimeControl "180+1"]
[Date "2022.02.08"]
[WhiteClock "0:00:16"]
[BlackClock "0:01:14"]

1. d4 {[%clk 0:03:00]}  d5 {[%clk 0:02:59]} 2. Nf3 {[%clk 0:03:01]}  Nf6 {[%clk 0:02:58]} 3. c4 {[%clk 0:03:02]}  dxc4 {[%clk 0:02:57]} 4. Nc3 {[%clk 0:03:03]}  a6 {[%clk 0:02:57]} 5. e3 {[%clk 0:03:00]}  b5 {[%clk 0:02:57]} 6. a4 {[%clk 0:03:00]}  b4 {[%clk 0:02:55]} 7. Na2 {[%clk 0:03:00]}  e6 {[%clk 0:02:55]} 8. Bxc4 {[%clk 0:03:00]}  Bb7 {[%clk 0:02:55]} 9. O-O {[%clk 0:03:00]}  Nbd7 {[%clk 0:02:49]} 10. Bd2 {[%clk 0:02:59]}  a5 {[%clk 0:02:49]} 11. Nc1 {[%clk 0:02:58]}  Bd6 {[%clk 0:02:47]} 12. Nd3 {[%clk 0:02:57]}  O-O {[%clk 0:02:47]} 13. Rc1 {[%clk 0:02:57]}  Qe7 {[%clk 0:02:46]} 14. Qe2 {[%clk 0:02:50]}  Rfd8 {[%clk 0:02:45]} 15. Rfd1 {[%clk 0:02:49]}  Ne4 {[%clk 0:02:42]} 16. Be1 {[%clk 0:02:48]}  Rac8 {[%clk 0:02:38]} 17. Nfe5 {[%clk 0:02:43]}  Bxe5 {[%clk 0:02:31]} 18. Nxe5 {[%clk 0:02:41]}  Nxe5 {[%clk 0:02:30]} 19. dxe5 {[%clk 0:02:42]}  Nc5 {[%clk 0:02:30]} 20. Rxd8+ {[%clk 0:02:36]}  Rxd8 {[%clk 0:02:31]} 21. b3 {[%clk 0:02:27]}  h6 {[%clk 0:02:28]} 22. f3 {[%clk 0:02:24]}  Bd5 {[%clk 0:02:22]} 23. Bxd5 {[%clk 0:02:01]}  exd5 {[%clk 0:02:15]} 24. Qc2 {[%clk 0:01:54]}  Ne6 {[%clk 0:02:15]} 25. Qc6 {[%clk 0:01:48]}  d4 {[%clk 0:02:15]} 26. Bf2 {[%clk 0:01:43]}  dxe3 {[%clk 0:02:08]} 27. Bxe3 {[%clk 0:01:43]}  Rd3 {[%clk 0:02:07]} 28. Qa8+ {[%clk 0:01:27]}  Qf8 {[%clk 0:02:06]} 29. Qe4 {[%clk 0:01:22]}  Rxb3 {[%clk 0:02:02]} 30. f4 {[%clk 0:01:22]}  g6 {[%clk 0:01:41]} 31. g4 {[%clk 0:01:20]}  Qd8 {[%clk 0:01:38]} 32. f5 {[%clk 0:01:19]}  Ng5 {[%clk 0:01:38]} 33. Bxg5 {[%clk 0:01:16]}  Qxg5 {[%clk 0:01:26]} 34. Rxc7 {[%clk 0:01:01]}  gxf5 {[%clk 0:01:26]} 35. Qa8+ {[%clk 0:00:32]}  Kg7 {[%clk 0:01:24]} 36. Rxf7+ {[%clk 0:00:16]}  Kxf7 {[%clk 0:01:25]} 37. Qd5+ {[%clk 0:00:16]}  Kg7 {[%clk 0:01:26]} 38. Qxb3 {[%clk 0:00:16]}  Qxg4+ {[%clk 0:01:24]} 39. Kh1 {[%clk 0:00:16]}  Qe4+ {[%clk 0:01:21]} 40. Kg1 {[%clk 0:00:16]}  Qxe5 {[%clk 0:01:17]} 41. Qc4 {[%clk 0:00:16]}  Qe1+ {[%clk 0:01:14]} 0-1


[Site "https://www.chess.com"]

[Event "Early Titled Tuesday Blitz | February 8 2022"]
[White "Artemenko, Oleg"]
[Black "Howell, David W L"]
[WhiteFideId "14201798"]
[BlackFideId "410608"]
[WhiteElo "2639"]
[BlackElo "2999"]
[Result "0-1"]
[Round "06"]
[TimeControl "180+1"]
[Date "2022.02.08"]
[WhiteClock "0:00:06"]
[BlackClock "0:00:16"]

1. d4 {[%clk 0:03:00]}  f5 {[%clk 0:02:53]} 2. Nc3 {[%clk 0:03:00]}  Nf6 {[%clk 0:02:51]} 3. Bg5 {[%clk 0:03:01]}  d5 {[%clk 0:02:51]} 4. Nf3 {[%clk 0:02:58]}  g6 {[%clk 0:02:38]} 5. Qd2 {[%clk 0:02:55]}  Nbd7 {[%clk 0:02:31]} 6. O-O-O {[%clk 0:02:54]}  Ne4 {[%clk 0:02:27]} 7. Nxe4 {[%clk 0:02:52]}  dxe4 {[%clk 0:02:28]} 8. Ne1 {[%clk 0:02:45]}  Nf6 {[%clk 0:02:22]} 9. e3 {[%clk 0:02:41]}  Be6 {[%clk 0:02:19]} 10. Bxf6 {[%clk 0:02:33]}  exf6 {[%clk 0:02:18]} 11. Kb1 {[%clk 0:02:31]}  Bd6 {[%clk 0:02:06]} 12. h4 {[%clk 0:02:28]}  h5 {[%clk 0:02:03]} 13. g3 {[%clk 0:02:29]}  O-O {[%clk 0:02:01]} 14. Be2 {[%clk 0:02:29]}  c6 {[%clk 0:01:59]} 15. Ng2 {[%clk 0:02:29]}  Bf7 {[%clk 0:01:56]} 16. Nf4 {[%clk 0:02:28]}  b5 {[%clk 0:01:54]} 17. Qc3 {[%clk 0:02:23]}  Qb6 {[%clk 0:01:42]} 18. Qd2 {[%clk 0:02:07]}  a5 {[%clk 0:01:38]} 19. Rc1 {[%clk 0:02:06]}  Rfb8 {[%clk 0:01:29]} 20. c4 {[%clk 0:02:01]}  Qb7 {[%clk 0:01:22]} 21. c5 {[%clk 0:01:45]}  Bxf4 {[%clk 0:01:17]} 22. gxf4 {[%clk 0:01:46]}  Qd7 {[%clk 0:01:17]} 23. Bd1 {[%clk 0:01:43]}  a4 {[%clk 0:01:15]} 24. Qb4 {[%clk 0:01:39]}  Qd5 {[%clk 0:01:13]} 25. a3 {[%clk 0:01:37]}  Kf8 {[%clk 0:00:56]} 26. Be2 {[%clk 0:01:30]}  Ke7 {[%clk 0:00:52]} 27. Kc2 {[%clk 0:01:29]}  Rg8 {[%clk 0:00:49]} 28. Rcg1 {[%clk 0:01:26]}  Qa2 {[%clk 0:00:47]} 29. Ra1 {[%clk 0:01:22]}  Qe6 {[%clk 0:00:45]} 30. Rag1 {[%clk 0:01:21]}  Qd7 {[%clk 0:00:44]} 31. Rg3 {[%clk 0:01:17]}  Qd5 {[%clk 0:00:40]} 32. Rgg1 {[%clk 0:01:09]}  Kf8 {[%clk 0:00:39]} 33. Rg3 {[%clk 0:00:59]}  Qa2 {[%clk 0:00:34]} 34. Rgg1 {[%clk 0:00:58]}  Rg7 {[%clk 0:00:32]} 35. Ra1 {[%clk 0:00:56]}  Qd5 {[%clk 0:00:32]} 36. Rag1 {[%clk 0:00:56]}  Kg8 {[%clk 0:00:31]} 37. Rg3 {[%clk 0:00:50]}  Kh7 {[%clk 0:00:31]} 38. Rhg1 {[%clk 0:00:50]}  Rgg8 {[%clk 0:00:31]} 39. Kc3 {[%clk 0:00:49]}  Kh6 {[%clk 0:00:30]} 40. Bd1 {[%clk 0:00:39]}  Rg7 {[%clk 0:00:28]} 41. Be2 {[%clk 0:00:30]}  Rag8 {[%clk 0:00:28]} 42. Kd2 {[%clk 0:00:27]}  Qa2 {[%clk 0:00:26]} 43. Kc3 {[%clk 0:00:16]}  g5 {[%clk 0:00:25]} 44. hxg5+ {[%clk 0:00:15]}  fxg5 {[%clk 0:00:26]} 45. fxg5+ {[%clk 0:00:14]}  Rxg5 {[%clk 0:00:27]} 46. Rxg5 {[%clk 0:00:14]}  Rxg5 {[%clk 0:00:28]} 47. Rxg5 {[%clk 0:00:15]}  Kxg5 {[%clk 0:00:28]} 48. f4+ {[%clk 0:00:11]}  Kh4 {[%clk 0:00:18]} 49. Bd1 {[%clk 0:00:10]}  Kg3 {[%clk 0:00:17]} 50. Qa5 {[%clk 0:00:10]}  Qc4+ {[%clk 0:00:15]} 51. Kd2 {[%clk 0:00:10]}  Qd3+ {[%clk 0:00:16]} 52. Kc1 {[%clk 0:00:10]}  Qxe3+ {[%clk 0:00:16]} 53. Kb1 {[%clk 0:00:11]}  Qxd4 {[%clk 0:00:15]} 54. Qe1+ {[%clk 0:00:11]}  Qf2 {[%clk 0:00:15]} 55. Qc3+ {[%clk 0:00:11]}  Kxf4 {[%clk 0:00:15]} 56. Qf6 {[%clk 0:00:08]}  Bb3 {[%clk 0:00:14]} 57. Qh6+ {[%clk 0:00:07]}  Kg3 {[%clk 0:00:13]} 58. Qg5+ {[%clk 0:00:06]}  Kh2 {[%clk 0:00:13]} 59. Qxh5+ {[%clk 0:00:06]}  Kg1 {[%clk 0:00:13]} 60. Qg5+ {[%clk 0:00:06]}  Kf1 {[%clk 0:00:13]} 61. Bxb3 {[%clk 0:00:03]}  axb3 {[%clk 0:00:14]} 62. Qc1+ {[%clk 0:00:01]}  Qe1 {[%clk 0:00:14]} 63. Qxe1+ {[%clk 0:00:02]}  Kxe1 {[%clk 0:00:14]} 64. a4 {[%clk 0:00:03]}  bxa4 {[%clk 0:00:14]} 65. Kc1 {[%clk 0:00:04]}  e3 {[%clk 0:00:14]} 66. Kb1 {[%clk 0:00:05]}  f4 {[%clk 0:00:14]} 67. Kc1 {[%clk 0:00:06]}  f3 {[%clk 0:00:15]} 68. Kb1 {[%clk 0:00:05]}  f2 {[%clk 0:00:16]} 69. Kc1 {[%clk 0:00:06]}  f1=Q {[%clk 0:00:16]} 0-1


[Site "https://www.chess.com"]

[Event "Early Titled Tuesday Blitz | February 8 2022"]
[White "Ashiev, Eduard"]
[Black "Orlov, Georgi"]
[WhiteFideId "4130090"]
[BlackFideId "2011271"]
[WhiteElo "2004"]
[BlackElo "2466"]
[Result "0-1"]
[Round "06"]
[TimeControl "180+1"]
[Date "2022.02.08"]
[WhiteClock "0:00:19"]
[BlackClock "0:00:48"]

1. d4 {[%clk 0:03:00]}  e6 {[%clk 0:02:39]} 2. e4 {[%clk 0:03:00]}  d5 {[%clk 0:02:39]} 3. Nc3 {[%clk 0:03:00]}  Bb4 {[%clk 0:02:38]} 4. exd5 {[%clk 0:02:59]}  exd5 {[%clk 0:02:37]} 5. Bd3 {[%clk 0:02:59]}  Nf6 {[%clk 0:02:34]} 6. h3 {[%clk 0:02:58]}  O-O {[%clk 0:02:34]} 7. Qf3 {[%clk 0:02:58]}  c5 {[%clk 0:02:32]} 8. dxc5 {[%clk 0:02:54]}  d4 {[%clk 0:02:31]} 9. a3 {[%clk 0:02:53]}  Ba5 {[%clk 0:02:30]} 10. b4 {[%clk 0:02:52]}  dxc3 {[%clk 0:02:28]} 11. bxa5 {[%clk 0:02:51]}  Qxa5 {[%clk 0:02:18]} 12. Ne2 {[%clk 0:02:44]}  Nbd7 {[%clk 0:02:16]} 13. O-O {[%clk 0:02:39]}  Ne5 {[%clk 0:02:09]} 14. Qg3 {[%clk 0:02:35]}  Nxd3 {[%clk 0:02:06]} 15. Qxd3 {[%clk 0:02:34]}  Qxc5 {[%clk 0:02:02]} 16. Qxc3 {[%clk 0:02:19]}  Qc6 {[%clk 0:01:55]} 17. Qxc6 {[%clk 0:02:11]}  bxc6 {[%clk 0:01:55]} 18. Bb2 {[%clk 0:02:05]}  Nd5 {[%clk 0:01:53]} 19. c4 {[%clk 0:02:00]}  Nb6 {[%clk 0:01:52]} 20. c5 {[%clk 0:01:54]}  Nc4 {[%clk 0:01:47]} 21. Bc3 {[%clk 0:01:54]}  Be6 {[%clk 0:01:46]} 22. Nf4 {[%clk 0:01:48]}  Bf5 {[%clk 0:01:40]} 23. Rfe1 {[%clk 0:01:41]}  Rfe8 {[%clk 0:01:37]} 24. f3 {[%clk 0:01:34]}  f6 {[%clk 0:01:34]} 25. g4 {[%clk 0:01:30]}  Bd7 {[%clk 0:01:34]} 26. Kf2 {[%clk 0:01:28]}  Rxe1 {[%clk 0:01:30]} 27. Rxe1 {[%clk 0:01:27]}  Re8 {[%clk 0:01:26]} 28. Rxe8+ {[%clk 0:01:08]}  Bxe8 {[%clk 0:01:26]} 29. a4 {[%clk 0:01:07]}  Bd7 {[%clk 0:01:18]} 30. Ke2 {[%clk 0:01:03]}  Bc8 {[%clk 0:01:17]} 31. Kd3 {[%clk 0:00:57]}  Ba6 {[%clk 0:01:17]} 32. Kd4 {[%clk 0:00:56]}  Ne5 {[%clk 0:01:09]} 33. Ke3 {[%clk 0:00:48]}  Nd7 {[%clk 0:01:08]} 34. Bd4 {[%clk 0:00:45]}  Bc4 {[%clk 0:01:07]} 35. h4 {[%clk 0:00:42]}  Kf7 {[%clk 0:01:05]} 36. h5 {[%clk 0:00:34]}  g5 {[%clk 0:01:00]} 37. hxg6+ {[%clk 0:00:33]}  hxg6 {[%clk 0:01:00]} 38. Kd2 {[%clk 0:00:32]}  g5 {[%clk 0:00:59]} 39. Ng2 {[%clk 0:00:32]}  Bd5 {[%clk 0:00:54]} 40. Ke3 {[%clk 0:00:29]}  Ke6 {[%clk 0:00:54]} 41. f4 {[%clk 0:00:28]}  Bxg2 {[%clk 0:00:53]} 42. fxg5 {[%clk 0:00:23]}  fxg5 {[%clk 0:00:53]} 43. Kd3 {[%clk 0:00:22]}  Ne5+ {[%clk 0:00:52]} 44. Kc3 {[%clk 0:00:22]}  Nxg4 {[%clk 0:00:50]} 45. Kb4 {[%clk 0:00:22]}  Bf1 {[%clk 0:00:49]} 46. Bc3 {[%clk 0:00:19]}  Ne3 {[%clk 0:00:48]} 0-1


[Site "https://www.chess.com"]